fUSD/lending_fUSD_20240121
["ID","MTS","AMOUNT","RATE_DAILY","PERIOD"]
[312393006,1705858254425,-1377.294861,0.00038,7]
[312393007,1705858254434,-1650.0,0.00038,3]
[312393008,1705858254444,-1206.28,0.00038,3]
[312393009,1705858254454,-1206.28,0.00038,3]
[312393010,1705858254463,-1206.28,0.00038,3]
[312393011,1705858254474,-1206.28,0.00038,3]
[312393012,1705858254485,-1206.28,0.00038,3]
[312393013,1705858254494,-1206.28,0.00038,3]
[312393014,1705858254504,-1206.28,0.00038,3]
[312393015,1705858254513,-1206.28,0.00038,3]
[312393016,1705858254523,-1206.28,0.00038,3]
[312393017,1705858254532,-1206.28,0.00038,3]
[312393018,1705858254541,-1206.28,0.00038,3]
[312393019,1705858254553,-1206.28,0.00038,3]
[312393020,1705858254564,-1206.28,0.00038,3]
[312393021,1705858254574,-1206.28,0.00038,3]
[312393022,1705858254584,-1206.28,0.00038,3]
[312393023,1705858254593,-1206.28,0.00038,3]
[312393024,1705858254607,-1206.28,0.00038,3]
[312393025,1705858254617,-1206.28,0.00038,3]
[312393026,1705858254626,-1206.28,0.00038,3]
[312393027,1705858254636,-1206.28,0.00038,3]
[312393028,1705858254645,-151.0,0.00038,7]
[312393029,1705858254656,-411.658369,0.00038,7]
[312393030,1705858254666,-411.658369,0.00038,7]
[312393031,1705858254677,-158.868333,0.00038,7]
[312393032,1705858254688,-158.868333,0.00038,7]
[312393033,1705858254698,-151.0,0.00038,7]
[312393034,1705858254709,-271.1195,0.00038,7]
[312393035,1705858254720,-151.0,0.00038,7]
[312393036,1705858254731,-2604.058915,0.00038,7]
[312393037,1705858254741,-2604.058915,0.00038,7]
[312393038,1705858254753,-299.647335,0.00038,7]
[312393039,1705858254763,-299.647335,0.00038,7]
[312393040,1705858254774,-1098.304349,0.00038,7]
[312393041,1705858254784,-1098.304349,0.00038,7]
[312393042,1705858254794,-5186.4019632,0.00038,15]
[312393043,1705858254804,-12587.25473173,0.00038,15]
[312393044,1705858254814,-158.933562,0.00038,7]
[312393045,1705858254826,-152.14113685,0.00038021,7]
[312393046,1705858254835,-150.0,0.00038049,2]
[312393047,1705858254845,-500.0,0.00038082,14]
[312393048,1705858254856,-157.48867627,0.00038092,7]
[312393049,1705858254865,-305.35588113,0.00038136,7]
[312393050,1705858254875,-500.0,0.00038137,7]
[312393051,1705858254884,-28591.38700374,0.00038142,2]
[312393052,1705858254894,-158.0479798,0.00038162,7]
[312393053,1705858254904,-150.39788915,0.0003819,7]
[312393054,1705858254913,-150.0,0.000382,30]
[312393055,1705858254922,-500.0,0.00038289,2]
[312393056,1705858254932,-1879.85265306,0.000383,7]
[312393057,1705858254941,-150.0,0.000383,10]
[312393058,1705858254951,-305.35588113,0.00038316,7]
[312393059,1705858254960,-450.0,0.00038327,3]
[312393060,1705858254969,-201.0,0.00038332,23]
[312393061,1705858254979,-972.15254168,0.00038337,7]
[312393062,1705858254988,-305.35588113,0.00038342,7]
[312393063,1705858254997,-500.0,0.00038356,15]
[312393064,1705858255007,-151.13019096,0.00038384,7]
[312393065,1705858255016,-155.76653202,0.00038388,7]
[312393066,1705858255026,-2000.0,0.00038393,30]
[312393067,1705858255037,-216.05619567,0.000384,30]
[312393068,1705858255050,-378.45529806,0.0003843,7]
[312393069,1705858255059,-305.35588113,0.0003843,7]
[312393070,1705858255068,-152.31080223,0.00038465,7]
[312393071,1705858255078,-2010.4,0.0003847,2]
[312393072,1705858255088,-317.9,0.0003849,2]
[312393073,1705858255097,-2000.0,0.000385,30]
[312393074,1705858255107,-305.35588113,0.0003851,7]
[312393075,1705858255117,-1879.85265306,0.0003854,7]
[312393076,1705858255127,-305.35588113,0.00038552,7]
[312393077,1705858255137,-972.15254168,0.00038563,7]
[312393078,1705858255146,-172.5,0.00038581,7]
[312393079,1705858255156,-5301.01,0.000386,7]
[312393080,1705858255166,-8995.51,0.000386,7]
[312393081,1705858255176,-502.250674,0.000386,5]
[312393082,1705858255185,-378.45529806,0.00038604,7]
[312393083,1705858255194,-500.0,0.0003863,16]
[312393084,1705858255203,-378.45529806,0.00038698,7]
[312393085,1705858255213,-18842.04,0.000387,7]
[312393086,1705858255222,-1000.0,0.00038703,10]
[312393087,1705858255232,-500.0,0.00038795,7]
[312393088,1705858255241,-26614.56447736,0.000388,4]
[312393089,1705858255250,-500.0,0.0003882,3]
[312393090,1705858255259,-152.53682314,0.00038829,7]
[312393091,1705858255268,-150.39788915,0.00038833,7]
[312393092,1705858255288,-500.0,0.0003884,3]
[312393093,1705858255299,-500.0,0.0003886,3]
[312393094,1705858255308,-500.0,0.0003888,3]
[312393095,1705858255318,-150.39788915,0.00038881,7]
[312393096,1705858255328,-443.84,0.00038881,2]
[312393097,1705858255337,-19224.67672709,0.000389,20]
[312393098,1705858255349,-152.98,0.000389,2]
[312393099,1705858255360,-500.0,0.000389,3]
[312393100,1705858255370,-150.0,0.000389,13]
[312393101,1705858255380,-263.923633,0.00038905,2]
[312393102,1705858255390,-500.0,0.0003892,3]
[312393103,1705858255400,-151.13019096,0.00038926,7]
[312393104,1705858255410,-500.0,0.0003894,3]
[312393105,1705858255420,-500.0,0.0003896,3]
[312393106,1705858255430,-152.14113685,0.00038961,7]
[312393107,1705858255439,-1879.85265306,0.00038966,7]
[312393108,1705858255448,-158.0479798,0.00038972,7]
[312393109,1705858255458,-281.99182628,0.0003898,2]
[312393110,1705858255468,-1000.0,0.0003898,10]
[312393111,1705858255477,-1000.0,0.0003898,10]
[312393112,1705858255487,-1000.0,0.0003898,10]
[312393113,1705858255496,-1000.0,0.0003898,10]
[312393114,1705858255506,-1000.0,0.0003898,10]
[312393115,1705858255517,-500.0,0.0003898,3]
[312393116,1705858255526,-378.45529806,0.00038985,7]
[312393117,1705858255538,-200.0,0.00038987,24]
[312393118,1705858255549,-200.0,0.00038987,37]
[312393119,1705858255559,-450.0,0.00038988,3]
[312393120,1705858255569,-100000.0,0.00039,9]
[312393121,1705858255579,-975.79882434,0.00039,4]
[312393122,1705858255589,-197.02869702,0.00039,4]
[312393123,1705858255599,-1428.71461591,0.00039,2]
[312393124,1705858255610,-308.96226197,0.00039,12]
[312393125,1705858255621,-2000.0,0.00039,30]
[312393126,1705858255632,-10000.0,0.00039,10]
[312393127,1705858255641,-501.35,0.00039,15]
[312393128,1705858255653,-32375.72507432,0.00039,40]
[312393129,1705858255664,-25800.0,0.00039,2]
[312393130,1705858255674,-1000.0,0.00039,120]
[312393131,1705858255683,-3000.0,0.00039,24]
[312393132,1705858255693,-5185.0,0.00039,15]
[312393133,1705858255702,-12586.0,0.00039,15]
[312393134,1705858255712,-500.0,0.00039,3]
[312393135,1705858255721,-150.0,0.00039,3]
[312393136,1705858255730,-3000.0,0.0003901,24]
[312393137,1705858255756,-5492.069012,0.0003902,24]
[312393138,1705858255775,-500.0,0.0003902,3]
[312393139,1705858255792,-500.0,0.0003904,3]
[312393140,1705858255808,-1879.85265306,0.00039059,7]
[312393141,1705858255824,-500.0,0.0003906,3]
[312393142,1705858255842,-972.15254168,0.00039077,7]
[312393143,1705858255859,-500.0,0.0003908,3]
[312393144,1705858255873,-378.45529806,0.00039093,7]
[312393145,1705858255888,-300.0,0.000391,6]
[312393146,1705858255903,-500.0,0.000391,3]
[312393147,1705858255920,-500.0,0.0003912,3]
[312393148,1705858255932,-500.0,0.0003914,3]
[312393149,1705858255949,-151.0,0.00039154,2]
[312393150,1705858255968,-250.49088,0.00039154,2]
[312393151,1705858255984,-152.0,0.00039159,4]
[312393152,1705858255999,-500.0,0.0003916,3]
[312393153,1705858256015,-150.39788915,0.0003918,7]
[312393154,1705858256032,-500.0,0.0003918,3]
[312393155,1705858256051,-305.35588113,0.00039196,7]
[312393156,1705858256066,-500.0,0.000392,3]
[312393157,1705858256080,-500.0,0.0003922,3]
[312393158,1705858256095,-150.39788915,0.00039222,7]
[312393159,1705858256115,-205.0,0.0003923,2]
[312393160,1705858256127,-500.0,0.0003924,3]
[312393161,1705858256139,-500.0,0.0003926,3]
[312393162,1705858256157,-1000.0,0.0003926,2]
[312393163,1705858256173,-378.45529806,0.00039266,7]
[312393164,1705858256192,-151.13019096,0.00039268,7]
[312393165,1705858256209,-500.0,0.0003928,3]
[312393166,1705858256225,-152.14113685,0.00039281,7]
[312393167,1705858256242,-5301.01,0.000393,7]
[312393168,1705858256259,-8995.51,0.000393,7]
[312393169,1705858256277,-500.0,0.000393,3]
[312393170,1705858256294,-161.403858,0.000393,11]
[312393171,1705858256310,-500.0,0.0003932,3]
[312393172,1705858256325,-1879.85265306,0.00039323,7]
[312393173,1705858256352,-1879.85265306,0.00039338,7]
[312393174,1705858256366,-500.0,0.0003934,3]
[312393175,1705858256381,-158.87684391,0.00039342,4]
[312393176,1705858256395,-972.15254168,0.00039352,7]
[312393177,1705858256409,-152.31080223,0.00039357,7]
[312393178,1705858256422,-500.0,0.0003936,3]
[312393179,1705858256436,-158.65195984,0.00039365,7]
[312393180,1705858256449,-305.35588113,0.00039369,7]
[312393181,1705858256462,-500.0,0.0003938,3]
[312393182,1705858256476,-263.923633,0.00039391,2]
[312393183,1705858256489,-2000.0,0.00039393,30]
[312393184,1705858256502,-18842.04,0.000394,7]
[312393185,1705858256515,-500.0,0.000394,3]
[312393186,1705858256528,-1000.0,0.00039403,10]
[312393187,1705858256541,-152.14113685,0.00039408,7]
[312393188,1705858256554,-1000.0,0.00039411,10]
[312393189,1705858256568,-152.53682314,0.00039412,7]
[312393190,1705858256581,-8458.67736133,0.0003942,7]
[312393191,1705858256594,-500.0,0.0003942,3]
[312393192,1705858256607,-378.45529806,0.00039423,7]
[312393193,1705858256620,-1000.0,0.00039425,10]
[312393194,1705858256633,-500.0,0.0003944,3]
[312393195,1705858256646,-1000.0,0.00039445,10]
[312393196,1705858256665,-500.0,0.00039452,7]
[312393197,1705858256680,-500.0,0.0003946,3]
[312393198,1705858256696,-1879.85265306,0.00039474,7]
[312393199,1705858256712,-500.0,0.0003948,3]
[312393200,1705858256727,-151.13019096,0.0003949,7]
[312393201,1705858256742,-489.8598969,0.000395,4]
[312393202,1705858256756,-2001.0,0.000395,4]
[312393203,1705858256771,-251.05918351,0.000395,4]
[312393204,1705858256785,-500.0,0.000395,3]
[312393205,1705858256799,-158.65195984,0.00039503,7]
[312393206,1705858256813,-500.0,0.0003952,3]
[312393207,1705858256827,-500.0,0.0003954,3]
[312393208,1705858256841,-305.35588113,0.00039541,7]
[312393209,1705858256854,-2010.4,0.00039555,2]
[312393210,1705858256868,-500.0,0.0003956,3]
[312393211,1705858256881,-155.76653202,0.00039563,7]
[312393212,1705858256895,-152.53682314,0.00039574,7]
[312393213,1705858256909,-152.53682314,0.00039578,7]
[312393214,1705858256924,-500.0,0.0003958,3]
[312393215,1705858256938,-317.9,0.00039585,2]
[312393216,1705858256952,-378.45529806,0.00039596,7]
[312393217,1705858256965,-2002.0,0.000396,2]
[312393218,1705858256978,-300.0,0.000396,6]
[312393219,1705858256992,-500.0,0.000396,3]
[312393220,1705858257005,-158.65195984,0.00039603,7]
[312393221,1705858257019,-500.0,0.0003962,3]
[312393222,1705858257035,-500.0,0.0003964,3]
[312393223,1705858257051,-500.0,0.0003966,3]
[312393224,1705858257066,-152.53682314,0.00039675,7]
[312393225,1705858257080,-151.13019096,0.00039677,7]
[312393226,1705858257093,-152.53682314,0.00039679,7]
[312393227,1705858257108,-500.0,0.0003968,3]
[312393228,1705858257123,-378.45529806,0.0003969,7]
[312393229,1705858257136,-8777.0,0.0003969,3]
[312393230,1705858257148,-2003.0,0.000397,2]
[312393231,1705858257162,-1000.0,0.000397,2]
[312393232,1705858257173,-500.0,0.000397,3]
[312393233,1705858257185,-500.0,0.0003972,3]
[312393234,1705858257197,-500.0,0.0003974,3]
[312393235,1705858257209,-500.0,0.0003976,3]
[312393236,1705858257221,-155.53562738,0.00039776,7]
[312393237,1705858257234,-500.0,0.0003978,3]
[312393238,1705858257247,-1000.0,0.000398,30]
[312393239,1705858257259,-1000.0,0.000398,30]
[312393240,1705858257273,-353219.52835066,0.000398,5]
[312393241,1705858257288,-2004.0,0.000398,2]
[312393242,1705858257302,-1121.10149273,0.000398,10]
[312393243,1705858257315,-151.0,0.000398,7]
[312393244,1705858257329,-544.130464,0.000398,7]
[312393245,1705858257343,-544.130464,0.000398,7]
[312393246,1705858257356,-151.0,0.000398,7]
[312393247,1705858257368,-328.222102,0.000398,7]
[312393248,1705858257381,-328.222102,0.000398,7]
[312393249,1705858257394,-250.0,0.000398,7]
[312393250,1705858257406,-250.0,0.000398,7]
[312393251,1705858257418,-500.0,0.000398,3]
[312393252,1705858257430,-152.31080223,0.00039808,7]
[312393253,1705858257444,-302.0,0.00039812,4]
[312393254,1705858257457,-500.0,0.0003982,3]
[312393255,1705858257469,-157.48867627,0.00039822,7]
[312393256,1705858257481,-500.0,0.0003984,3]
[312393257,1705858257494,-9781.253776,0.0003985,2]
[312393258,1705858257505,-213.321367,0.0003985,2]
[312393259,1705858257518,-254.181053,0.0003985,2]
[312393260,1705858257531,-972.15254168,0.0003985,7]
[312393261,1705858257544,-305.35588113,0.00039853,7]
[312393262,1705858257557,-1879.85265306,0.00039855,7]
[312393263,1705858257570,-972.15254168,0.00039857,7]
[312393264,1705858257582,-500.0,0.0003986,3]
[312393265,1705858257594,-263.923633,0.00039878,2]
[312393266,1705858257607,-500.0,0.0003988,3]
[312393267,1705858257622,-350.00006257,0.000399,4]
[312393268,1705858257634,-2005.0,0.000399,2]
[312393269,1705858257646,-152.98,0.000399,2]
[312393270,1705858257659,-500.0,0.000399,3]
[312393271,1705858257671,-208.305938,0.000399,15]
[312393272,1705858257684,-500.0,0.0003992,3]
[312393273,1705858257696,-500.0,0.0003994,3]
[312393274,1705858257708,-152.79566132,0.00039943,7]
[312393275,1705858257721,-1273.934367,0.00039943,7]
[312393276,1705858257733,-1273.934367,0.00039943,7]
[312393277,1705858257747,-500.0,0.0003996,3]
[312393278,1705858257758,-400.0,0.0003997,2]
[312393279,1705858257772,-151.0,0.0003997,7]
[312393280,1705858257784,-151.0,0.0003997,7]
[312393281,1705858257797,-151.0,0.0003997,7]
[312393282,1705858257809,-156.139311,0.0003997,7]
[312393283,1705858257821,-156.139311,0.0003997,7]
[312393284,1705858257833,-798.84919118,0.0003998,3]
[312393285,1705858257845,-2340.55352952,0.0003998,60]
[312393286,1705858257859,-600.62312146,0.0003998,3]
[312393287,1705858257872,-540.0,0.0003998,3]
[312393288,1705858257883,-500.0,0.0003998,3]
[312393289,1705858257896,-1879.85265306,0.00039981,7]
[312393290,1705858257909,-200.0,0.00039987,39]
[312393291,1705858257920,-300.0,0.00039987,5]
[312393292,1705858257933,-200.0,0.00039987,27]
[312393293,1705858257946,-50000.0,0.0003999,30]
[312393294,1705858257958,-30195.0,0.0003999,3]
[312393295,1705858257970,-2604.058915,0.0003999,7]
[312393296,1705858257982,-2604.058915,0.0003999,7]
[312393297,1705858257994,-299.647335,0.0003999,7]
[312393298,1705858258005,-299.647335,0.0003999,7]
[312393299,1705858258017,-1098.304349,0.0003999,7]
[312393300,1705858258029,-1098.304349,0.0003999,7]
[312393301,1705858258046,-972.15254168,0.00039996,7]
[312393302,1705858258057,-100000.0,0.0004,10]
[312393303,1705858258070,-1377.294861,0.0004,7]
[312393304,1705858258083,-1377.294861,0.0004,7]
[312393305,1705858258095,-298.76904,0.0004,7]
[312393306,1705858258108,-411.658369,0.0004,7]
[312393307,1705858258120,-411.658369,0.0004,7]
[312393308,1705858258133,-158.868333,0.0004,7]
[312393309,1705858258145,-158.868333,0.0004,7]
[312393310,1705858258157,-151.0,0.0004,7]
[312393311,1705858258169,-151.0,0.0004,7]
[312393312,1705858258181,-2957.70917656,0.0004,17]
[312393313,1705858258194,-300.0,0.0004,12]
[312393314,1705858258209,-604.58830669,0.0004,2]
[312393315,1705858258224,-10256.5982179,0.0004,10]
[312393316,1705858258239,-964.05,0.0004,14]
[312393317,1705858258254,-4464.42757502,0.0004,20]
[312393318,1705858258269,-171.87454341,0.0004,4]
[312393319,1705858258284,-1687.99,0.0004,14]
[312393320,1705858258297,-1688.0,0.0004,14]
[312393321,1705858258312,-1688.0,0.0004,14]
[312393322,1705858258326,-1688.0,0.0004,14]
[312393323,1705858258340,-1688.0,0.0004,14]
[312393324,1705858258353,-1688.0,0.0004,14]
[312393325,1705858258368,-1688.0,0.0004,14]
[312393326,1705858258383,-1688.0,0.0004,14]
[312393327,1705858258396,-1688.0,0.0004,14]
[312393328,1705858258410,-1688.01,0.0004,14]
[312393329,1705858258423,-200000.0,0.0004,10]
[312393330,1705858258437,-3637.0,0.0004,10]
[312393331,1705858258450,-1345.07202141,0.0004,30]
[312393332,1705858258464,-350.0,0.0004,120]
[312393333,1705858258478,-333.18946667,0.0004,30]
[312393334,1705858258492,-395.5851415,0.0004,30]
[312393335,1705858258507,-432.50334672,0.0004,120]
[312393336,1705858258520,-400.0,0.0004,120]
[312393337,1705858258534,-160.48244496,0.0004,120]
[312393338,1705858258548,-276.0,0.0004,30]
[312393339,1705858258561,-319.0,0.0004,30]
[312393340,1705858258575,-886.0,0.0004,30]
[312393341,1705858258590,-500000.0,0.0004,4]
[312393342,1705858258604,-200000.0,0.0004,4]
[312393343,1705858258618,-688.589023,0.0004,30]
[312393344,1705858258630,-54264.43228568,0.0004,4]
[312393345,1705858258642,-2678.17811978,0.0004,4]
[312393346,1705858258653,-22022.85823354,0.0004,4]
[312393347,1705858258663,-155.0,0.0004,2]
[312393348,1705858258672,-257.66516504,0.0004,4]
[312393349,1705858258682,-6287.54443503,0.0004,4]
[312393350,1705858258693,-1084.09238932,0.0004,4]
[312393351,1705858258704,-301.26295697,0.0004,14]
[312393352,1705858258714,-2269.30418644,0.0004,4]
[312393353,1705858258725,-2797.57385779,0.0004,5]
[312393354,1705858258736,-1082.62057108,0.0004,10]
[312393355,1705858259020,-3541.71462604,0.0004,2]
[312393356,1705858259055,-11802.0960854,0.0004,10]
[312393357,1705858259065,-10000.91116,0.0004,14]
[312393358,1705858259075,-9477.62988132,0.0004,30]
[312393359,1705858259084,-12640.03,0.0004,21]
[312393360,1705858259094,-2855.76,0.0004,21]
[312393361,1705858259103,-2205.86981588,0.0004,4]
[312393362,1705858259113,-500.0,0.0004,120]
[312393363,1705858259122,-1531.65,0.0004,14]
[312393364,1705858259132,-1688.01,0.0004,14]
[312393365,1705858259141,-300.0,0.0004,4]
[312393366,1705858259150,-1000.0,0.0004,30]
[312393367,1705858259160,-1000.0,0.0004,30]
[312393368,1705858259169,-1000.0,0.0004,30]
[312393369,1705858259178,-1000.0,0.0004,30]
[312393370,1705858259188,-1000.0,0.0004,30]
[312393371,1705858259198,-1936.30309559,0.0004,30]
[312393372,1705858259207,-446.02947764,0.0004,4]
[312393373,1705858259218,-1506.55,0.0004,30]
[312393374,1705858259227,-5301.01,0.0004,7]
[312393375,1705858259237,-8995.51,0.0004,7]
[312393376,1705858259247,-480.30277652,0.0004,120]
[312393377,1705858259256,-1723.49027666,0.0004,30]
[312393378,1705858259266,-500.0,0.0004,6]
[312393379,1705858259275,-500.0,0.0004,6]
[312393380,1705858259285,-500.0,0.0004,6]
[312393381,1705858259294,-500.0,0.0004,6]
[312393382,1705858259303,-503.88888929,0.0004,6]
[312393383,1705858259312,-1500.92839559,0.0004,30]
[312393384,1705858259321,-2232.87863331,0.0004,10]
[312393385,1705858259330,-42680.31572448,0.0004,30]
[312393386,1705858259340,-855.52090992,0.0004,10]
[312393387,1705858259349,-1979.27869135,0.0004,10]
[312393388,1705858259358,-237.11286514,0.0004,30]
[312393389,1705858259367,-19298.99931675,0.0004,30]
[312393390,1705858259377,-21829.84532243,0.0004,30]
[312393391,1705858259386,-1792.32931711,0.0004,10]
[312393392,1705858259395,-151.0,0.0004,7]
[312393393,1705858259405,-161.33555867,0.0004,30]
[312393394,1705858259416,-413.36856947,0.0004,10]
[312393395,1705858259426,-18560.92072037,0.0004,30]
[312393396,1705858259435,-255.0,0.0004,12]
[312393397,1705858259445,-1377.294861,0.0004,7]
[312393398,1705858259454,-1377.294861,0.0004,7]
[312393399,1705858259463,-255.0,0.0004,12]
[312393400,1705858259472,-544.130464,0.0004,7]
[312393401,1705858259481,-544.130471,0.0004,7]
[312393402,1705858259491,-151.0,0.0004,7]
[312393403,1705858259500,-170.73795477,0.0004,30]
[312393404,1705858259509,-328.222102,0.0004,7]
[312393405,1705858259518,-328.222092,0.0004,7]
[312393406,1705858259527,-255.0,0.0004,12]
[312393407,1705858259537,-250.0,0.0004,7]
[312393408,1705858259547,-250.0,0.0004,7]
[312393409,1705858259556,-1700.0,0.0004,3]
[312393410,1705858259566,-151.0,0.0004,7]
[312393411,1705858259575,-255.0,0.0004,12]
[312393412,1705858259584,-151.0,0.0004,7]
[312393413,1705858259594,-151.0,0.0004,7]
[312393414,1705858259603,-156.139311,0.0004,7]
[312393415,1705858259612,-156.139309,0.0004,7]
[312393416,1705858259621,-255.0,0.0004,12]
[312393417,1705858259630,-300.0,0.0004,10]
[312393418,1705858259639,-411.658369,0.0004,7]
[312393419,1705858259648,-411.658369,0.0004,7]
[312393420,1705858259658,-158.868333,0.0004,7]
[312393421,1705858259667,-158.868333,0.0004,7]
[312393422,1705858259676,-151.0,0.0004,7]
[312393423,1705858259686,-179.995523,0.0004,7]
[312393424,1705858259695,-500.0,0.0004,15]
[312393425,1705858259704,-2604.058915,0.0004,7]
[312393426,1705858259714,-2604.058915,0.0004,7]
[312393427,1705858259724,-299.647335,0.0004,7]
[312393428,1705858259735,-299.647335,0.0004,7]
[312393429,1705858259746,-255.0,0.0004,12]
[312393430,1705858259757,-1098.304349,0.0004,7]
[312393431,1705858259769,-1098.304349,0.0004,7]
[312393432,1705858259779,-500.0,0.0004,3]
[312393433,1705858259788,-1273.934367,0.0004,7]
[312393434,1705858259798,-1273.934367,0.0004,7]
[312393435,1705858259807,-150.0,0.0004,15]
[312393436,1705858259817,-899.7162,0.0004,2]
[312393437,1705858259827,-255.0,0.0004,12]
[312393438,1705858259837,-2777.3727,0.0004,2]
[312393439,1705858259848,-972.15254168,0.0004001,30]
[312393440,1705858259858,-150.39788915,0.0004002,30]
[312393441,1705858259869,-50000.0,0.00040027,30]
[312393442,1705858259879,-152.14113685,0.00040043,30]
[312393443,1705858259889,-152.31080223,0.00040058,30]
[312393444,1705858259900,-1879.85265306,0.00040066,30]
[312393445,1705858259910,-18842.04,0.000401,7]
[312393446,1705858259920,-500.0,0.000401,15]
[312393447,1705858259929,-300.0,0.000401,6]
[312393448,1705858259939,-150.39788915,0.00040103,30]
[312393449,1705858259949,-500.0,0.0004011,7]
[312393450,1705858259958,-171.02207813,0.00040123,30]
[312393451,1705858259967,-152.31080223,0.00040125,30]
[312393452,1705858259977,-1000.0,0.00040172,10]
[312393453,1705858259986,-305.35588113,0.00040181,30]
[312393454,1705858259996,-152.04,0.00040183,2]
[312393455,1705858260005,-152.53682314,0.00040188,30]
[312393456,1705858260015,-150.0,0.00040199,3]
[312393457,1705858260025,-500.0,0.000402,15]
[312393458,1705858260034,-158.65195984,0.0004026,30]
[312393459,1705858260049,-150.39788915,0.00040276,30]
[312393460,1705858260058,-1206.28,0.000403,4]
[312393461,1705858260067,-1206.28,0.000403,4]
[312393462,1705858260078,-1206.28,0.000403,4]
[312393463,1705858260087,-1206.28,0.000403,4]
[312393464,1705858260096,-1206.28,0.000403,4]
[312393465,1705858260106,-1206.28,0.000403,4]
[312393466,1705858260115,-1206.28,0.000403,4]
[312393467,1705858260125,-1206.28,0.000403,4]
[312393468,1705858260135,-1206.28,0.000403,4]
[312393469,1705858260144,-1206.28,0.000403,4]
[312393470,1705858260153,-1206.28,0.000403,4]
[312393471,1705858260162,-1206.28,0.000403,4]
[312393472,1705858260171,-1206.28,0.000403,4]
[312393473,1705858260181,-1206.28,0.000403,4]
[312393474,1705858260190,-1206.28,0.000403,4]
[312393475,1705858260199,-1206.28,0.000403,4]
[312393476,1705858260208,-1206.28,0.000403,4]
[312393477,1705858260218,-1206.28,0.000403,4]
[312393478,1705858260227,-1206.28,0.000403,4]
[312393479,1705858260237,-1206.28,0.000403,4]
[312393480,1705858260246,-500.0,0.000403,15]
[312393481,1705858260255,-972.15254168,0.00040313,30]
[312393482,1705858260265,-9781.253776,0.00040348,2]
[312393483,1705858260275,-213.321367,0.00040348,2]
[312393484,1705858260285,-254.181053,0.00040348,2]
[312393485,1705858260295,-1580.93,0.00040349,15]
[312393486,1705858260305,-157.39736802,0.00040351,30]
[312393487,1705858260315,-263.923633,0.00040364,2]
[312393488,1705858260325,-152.14113685,0.00040382,30]
[312393489,1705858260334,-500.0,0.000404,16]
[312393490,1705858260344,-152.31080237,0.00040434,30]
[312393491,1705858260354,-972.15254168,0.00040459,30]
[312393492,1705858260364,-604.0,0.00040481,7]
[312393493,1705858260373,-19829.6136822,0.00040493,10]
[312393494,1705858260383,-20000.0,0.000405,2]
[312393495,1705858260392,-1000.0,0.000405,40]
[312393496,1705858260404,-500.0,0.000405,16]
[312393497,1705858260414,-300.0,0.000405,4]
[312393498,1705858260424,-152.53682314,0.00040516,30]
[312393499,1705858260433,-378.45529806,0.0004055,30]
[312393500,1705858260443,-1000.0,0.00040588,10]
[312393501,1705858260454,-1000.0,0.00040588,10]
[312393502,1705858260464,-1000.0,0.00040588,10]
[312393503,1705858260473,-1000.0,0.00040588,10]
[312393504,1705858260483,-1000.0,0.00040588,10]
[312393505,1705858260494,-1000.0,0.00040588,10]